{"text_format":"1","workbook":"xlsx","n_sheets":1,"sheets":["訂購單 "],"not_rendered":{"charts":0,"images":1,"macros":1,"external_links":0,"defined_names":2,"comments":0,"pivot_tables":0},"unopened":[],"bounds":{"document_bytes":16777216,"sheet_cells":100000,"rows_first":2000,"rows_last":500,"rows_between":2000,"halvings":0,"cell_chars":16384,"cell_head_chars":4096},"cells_cut":0,"cells_raw":0,"read":"whole","date_system":"1900"}

{"sheet":"訂購單 ","index":0,"n_rows":85,"n_cols":21,"rows_kept":85,"cut":false,"hidden":false,"merged":[[63,3,63,9],[72,3,72,9],[64,3,64,9],[68,3,68,9],[62,3,62,9],[61,3,61,9],[60,3,60,9],[65,3,65,9],[65,10,65,16],[63,10,63,16],[62,10,62,16],[67,3,67,9],[69,3,69,9],[66,10,66,16],[73,10,73,16],[74,3,74,9],[74,10,74,16],[77,3,77,9],[66,3,66,9],[67,10,67,16],[68,10,68,16],[75,3,75,9],[75,10,75,16],[72,10,72,16],[73,3,73,9],[77,10,77,16],[46,3,46,9],[45,10,45,16],[59,3,59,9],[58,3,58,9],[49,10,49,16],[56,3,56,9],[48,3,48,9],[50,3,50,9],[57,3,57,9],[51,3,51,9],[52,3,52,9],[55,3,55,9],[54,3,54,9],[50,10,50,16],[53,10,53,16],[46,10,46,16],[49,3,49,9],[52,10,52,16],[59,10,59,16],[47,3,47,9],[53,3,53,9],[56,10,56,16],[58,10,58,16],[41,10,41,16],[40,10,40,16],[35,3,35,9],[42,3,42,9],[41,3,41,9],[34,3,34,9],[38,3,38,9],[33,10,33,16],[36,3,36,9],[39,3,39,9],[39,10,39,16],[37,3,37,9],[33,3,33,9],[36,10,36,16],[40,3,40,9],[37,10,37,16],[21,10,21,16],[35,10,35,16],[34,10,34,16],[23,3,23,9],[26,3,26,9],[28,3,28,9],[30,10,30,16],[32,3,32,9],[32,10,32,16],[19,0,19,1],[25,10,25,16],[27,10,27,16],[16,0,16,2],[29,10,29,16],[31,10,31,16],[29,3,29,9],[25,3,25,9],[17,0,17,20],[22,3,22,9],[19,3,19,16],[16,16,16,17],[15,3,15,12],[23,10,23,16],[31,3,31,9],[14,16,14,17],[16,13,16,14],[16,10,16,12],[22,10,22,16],[28,10,28,16],[16,4,16,8],[14,5,14,6],[21,3,21,9],[26,10,26,16],[30,3,30,9],[15,15,15,20],[16,18,16,20],[14,18,14,20],[15,13,15,14],[20,3,20,9],[20,10,20,16],[24,3,24,9],[24,10,24,16],[27,3,27,9],[84,0,90,20],[83,0,83,20],[71,3,71,9],[82,18,82,20],[82,0,82,17],[71,10,71,16],[80,0,80,1],[81,0,81,18],[78,3,78,9],[78,10,78,16],[80,3,80,18],[76,3,76,9],[76,10,76,16],[0,0,0,20],[7,4,10,9],[7,1,10,3],[13,0,13,20],[14,7,14,8],[15,0,15,2],[14,0,14,2],[14,13,14,15],[14,11,14,12],[14,3,14,4],[14,9,14,10],[20,0,44,1],[45,0,66,1],[67,0,79,1],[79,3,79,9],[79,10,79,16],[69,10,69,16],[70,10,70,16],[70,3,70,9],[44,10,44,16],[38,10,38,16],[43,10,43,16],[48,10,48,16],[64,10,64,16],[47,10,47,16],[51,10,51,16],[57,10,57,16],[60,10,60,16],[61,10,61,16],[54,10,54,16],[55,10,55,16],[44,3,44,9],[45,3,45,9],[42,10,42,16],[43,3,43,9]]}
["【2022-06 毛寶兔宅配網夏特賣】訂購單  (活動期間 2022/6/10～2022/7/21 止) "]
[]
["-活動辦法：單筆訂單滿2000元免運費，未滿2000元另加100元運費。離島、外島、部分偏遠地區恕不配送；訂單成立5~7個工作天內出貨"]
["-送貨期間：2022/6/13～2022/8/1 週一至週五；2022/7/30(六)是最後一個週六送貨日(預購品除外)"]
["-付款方式：1)信用卡付款 2)ATM轉帳 3)貨到付款(電話、傳真訂購僅限使用貨到付款) 4)Line Pay付款 5)街口支付"]
["-活動說明：單筆訂單限送貨一個地點。貨到付款者請備妥正確貨款交由送貨人員，恕不找零。"]
["[註] 週日不配送，若不方便收貨可直接與司機另約配送時間。「網路下單」獨享購物金，出貨後7天統一發放。"]
[null,"訂購方式",null,null,"★網站訂購 www.maobao2.com.tw\n★投單信箱 service@info.maobao.com.tw\n★電話訂購 0800-266-199\n   (週一~週五9:00-12:30、13:30-17:00)\n★傳真訂購 02-8976-2715 (10分鐘後請來電確認)"]
[]
[]
[]
[]
[]
["訂購人資料 *為必填欄位"]
["*姓名",null,null,null,null,"□小姐   □先生",null,"*主要聯絡方式",null,"□市話  □手機",null,"*市話",null,null,null,null,"*手機 "]
["*住址",null,null,null,null,null,null,null,null,null,null,null,null,"*email"]
["公司戶\n發票",null,null,"公司抬頭",null,null,null,null,null,"統一編號",null,null,null,"配達時段",null,"□平日到貨","□週六到貨",null,"※配達時段相關說明詳見\n注意事項"]
["*如須換開發票，需辦理退貨訂單取消重新下單。　　*訂單成立後及商品配送前1~2日，以email通知。須填寫手機、市話，無法聯繫即取消訂單。"]
[]
["系列",null,"項次","商品名稱",null,null,null,null,null,null,null,null,null,null,null,null,null,"市價","特價","數量","金額"]
["衣物清潔系列",null,1,"【毛寶兔】超天然小蘇打植物2倍濃縮洗衣精1000g x1瓶+ 800g-補充包 x9包 贈100點購物金",null,null,null,null,null,null,"★年度熱銷Top1 ★嬰幼兒衣物適用  ★食用級小蘇打添加 ",null,null,null,null,null,null,1660,999,null,{"$f":"S21*T21","v":0}]
[null,null,2,"【毛寶兔】超天然小蘇打植物2倍濃縮洗衣精2.2kg x1+ 2kg-補充包 x2+【毛寶兔】超酵素衣物去漬劑500g-噴槍瓶 x1 贈100點購物金",null,null,null,null,null,null,"★嬰幼兒衣物適用 ★食用級小蘇打添加 ★低泡省水\n★蛋白分解酵素配方、有效去污   ",null,null,null,null,null,null,1277,999,null,{"$f":"S22*T22","v":0}]
[null,null,3,"【毛寶兔】超天然小蘇打植物2倍濃縮洗衣精5020g x2 贈100點購物金",null,null,null,null,null,null,"★嬰幼兒衣物適用 ★食用級小蘇打添加 ★低泡省水                                                                 ",null,null,null,null,null,null,1700,999,null,0]
[null,null,4,"【毛寶兔】超酵素制臭抗菌防霉洗衣精2000g x1 +1800g補充包 x2 + 超酵素衣領衣物去漬劑500g-噴槍瓶 x1",null,null,null,null,null,null,"★日本研發去味因子 ★蛋白分解酵素 ★有效防霉及去除汗臭                                                       ★SGS檢驗抑菌率>99.9％",null,null,null,null,null,null,657,399,null,0]
[null,null,5,"【毛寶兔】超酵素制臭抗菌防霉洗衣精1800g-補充包 x4",null,null,null,null,null,null,"★日本研發去味因子 ★蛋白分解酵素 ★有效防霉及去除汗臭                                                       ★SGS檢驗抑菌率>99.9％",null,null,null,null,null,null,636,399,null,0]
[null,null,6,"【毛寶】葳香抗菌洗衣精-防霉淨味3000g x1+ 2000g補充包 x4",null,null,null,null,null,null,"★99.99%有效洗淨冠狀病毒                                      \n★究極制臭力，1滴蘊含200種植物去味力",null,null,null,null,null,null,910,488,null,0]
[null,null,7,"【毛寶】葳香抗菌洗衣精-防蟎極淨3000g x1+ 2000g補充包 x4",null,null,null,null,null,null,"★99.99%有效洗淨冠狀病毒                                      \n★究極制菌力3重特濃複配，制菌率>99.9%",null,null,null,null,null,null,910,488,null,0]
[null,null,8,"【毛寶】小蘇打植萃香氛液體皂2000g - 制臭抗菌 x2 + 毛寶小蘇打植萃香氛液體皂 - 防蟎抗菌2000g x2 ",null,null,null,null,null,null,"★嚴選英國Soil Association有機認證精油，天然純淨零負擔                                      \n★葡萄柚籽天然抗菌 ★日本專利植萃淨味，終結惱人異味",null,null,null,null,null,null,876,556,null,0]
[null,null,9,"【毛寶】PM2.5除霉防蟎抗菌洗衣精_洗淨病毒2200g x2 + 毛寶PM2.5天然植萃抗菌洗衣精_洗淨病毒2200g x2 + 毛寶PM2.5制臭極淨抗菌洗衣精_洗淨病毒2200g x2",null,null,null,null,null,null,"★99.9%有效洗淨冠狀病毒  \n★日本研發V型潔淨因子 ★深入清潔避免二手PM2.5",null,null,null,null,null,null,1050,594,null,0]
[null,null,10,"【毛寶S】高效濃縮抗菌防霉洗衣精10kg x2 贈毛寶小蘇打洗碗精1000g(甜橙茶氛) x1 贈100點購物金",null,null,null,null,null,null,"★全新高效濃縮配方，用量減半，洗淨效果再升級                        ★獨特抗菌防霉配方 ★高效解垢，瓦解難洗污垢",null,null,null,null,null,null,2279,1200,null,0]
[null,null,11,"【毛寶S】高效濃縮抗菌防霉洗衣精10kg x10 贈毛寶S溫暖日光柔軟精4kg x1 + 毛寶兔超水感天然植物除菌清潔劑425g-效期至2023/5 x1 贈100點購物金",null,null,null,null,null,null,"★全新高效濃縮配方，用量減半，洗淨效果再升級                        ★獨特抗菌防霉配方 ★高效解垢，瓦解難洗污垢",null,null,null,null,null,null,11200,6000,null,0]
[null,null,12,"【毛寶S】高效濃縮抗菌防霉洗衣精10kg x2 + 毛寶S高效濃縮酵素香氛洗衣精10kg x1 贈毛寶小蘇打洗碗精1000g(甜橙茶氛) x1 贈100點購物金",null,null,null,null,null,null,"★全新高效濃縮配方，用量減半，洗淨效果再升級                        ★導入蛋白活性酵素，強化污垢深層分解",null,null,null,null,null,null,3559,1800,null,0]
[null,null,13,"【毛寶S】毛寶S高效濃縮酵素香氛洗衣精10kg x2 贈毛寶小蘇打洗碗精1000g(甜橙茶氛) x1 贈100點購物金",null,null,null,null,null,null,"★全新高效濃縮配方，用量減半，洗淨效果再升級                        ★導入蛋白活性酵素，強化污垢深層分解",null,null,null,null,null,null,2679,1200,null,0]
[null,null,14,"【毛寶S】溫暖日光柔軟精20kg x2桶 贈油嘴專用套管 x1",null,null,null,null,null,null,"★SGS檢驗不含四大重金屬 ★柔軟配方，預防纖維毛球                                ",null,null,null,null,null,null,2039,1100,null,0]
[null,null,15,"【毛寶兔】超美型防縮固色冷洗精1000g x2",null,null,null,null,null,null,"★獨特防縮、抗皺、固色因子 ★易燙柔軟抗靜電",null,null,null,null,null,null,420,249,null,0]
[null,null,16,"【毛寶】貼身衣物手洗精1000g-玫瑰天竺葵 x1 + 3D香氛 x1",null,null,null,null,null,null,"★深度抗菌99.9% ★專屬女性植萃香氛，貼身衣物專用                        ★中性溫和配方，植物系洗淨成分，輕鬆洗滌不傷手",null,null,null,null,null,null,278,198,null,0]
[null,null,17,"【毛寶】環保冷洗精2800g x1 +毛寶環保冷洗精2000g-補充包 x1",null,null,null,null,null,null,"★深度護纖技術 守護衣物不變形\n★99.9%天然抗菌力 抑制臭味生成",null,null,null,null,null,null,508,399,null,0]
[null,null,18,"【毛寶】X-sport 專業運動酵素洗衣精_沁檸白麝香500g x1 + 玫瑰香柏500g x1",null,null,null,null,null,null,"★專為運動衣物研發 ★FEVO織物進化技術新革命 \n★毛寶獨家研發潔淨技術，年度最強洗淨力",null,null,null,null,null,null,1198,839,null,0]
[null,null,19,"【毛寶兔】超酵素衣領衣物去漬劑500g-噴槍瓶 x2",null,null,null,null,null,null,"★嬰幼兒衣物適用 ★蛋白分解酵素配方、有效去污                        ★純中性配方",null,null,null,null,null,null,300,199,null,0]
[null,null,20,"【毛寶兔】超酵素衣領衣物去漬劑2000g-補充瓶 x2 贈去漬劑500g-噴槍瓶 x1",null,null,null,null,null,null,"★嬰幼兒衣物適用 ★蛋白分解酵素配方、有效去污                        ★純中性配方",null,null,null,null,null,null,750,470,null,0]
[null,null,21,"【毛寶兔】超複合酵素衣物去漬凝膠250g x2",null,null,null,null,null,null,"★精粹3種酵素之獨家配方 ★神奇魔刷，深入纖維分解頑垢         ★無磷、無苯、無螢光劑、無漂白劑",null,null,null,null,null,null,450,198,null,0]
[null,null,22,"【毛寶】葳香衣物柔軟精-花香3200g x1 + 1900g-補充包 x2",null,null,null,null,null,null,"★特殊柔軟劑，洗後讓衣物柔軟有彈性                                       ★可防灰塵、防靜電，衣物洗後持續散發天然花香",null,null,null,null,null,null,315,219,null,0]
[null,null,23,"【毛寶】葳香衣物柔軟精-防霉3200g x1 + 1900g-補充包 x2",null,null,null,null,null,null,"★特殊柔軟劑，洗後讓衣物柔軟有彈性                                       ★可防灰塵、防靜電，讓衣物洗後散發陽光曬後暖暖的香味",null,null,null,null,null,null,315,219,null,0]
[null,null,24,"【毛寶兔】超天然小蘇打活氧殺菌漂白素330g x4",null,null,null,null,null,null,"★抑菌率99.99% ★氧系漂白成分，花色衣物也能安心使用",null,null,null,null,null,null,600,356,null,0]
[null,null,25,"【毛寶S】增豔無氯漂白水3600g(清新百花香) x2",null,null,null,null,null,null,"★溫和雙氧、潔白殺菌、不傷衣料 ★清新百花香溫和不刺鼻",null,null,null,null,null,null,400,278,null,0]
["居家清潔系列",null,26,"【毛寶兔】超酵素活氧洗衣槽除菌去污劑250g x6",null,null,null,null,null,null,"★超酵素活氧配方，含PT酵素 ★SGS檢驗抑菌率>99.9％",null,null,null,null,null,null,450,270,null,0]
[null,null,27,"【毛寶】洗衣槽專用去污劑-洗淨病毒 300g-3入 x4",null,null,null,null,null,null,"★99.9%洗淨病毒 ★Ag+銀離子配方，高效移除頑強污垢",null,null,null,null,null,null,672,399,null,0]
[null,null,28,"【毛寶兔】超水感天然植物除菌清潔劑425g x2瓶-效期至2023/5",null,null,null,null,null,null,"★適合有嬰兒家庭 ★清潔、除菌除臭 ★不須用水擦拭  ",null,null,null,null,null,null,300,198,null,0]
[null,null,29,"【香滿室】地板清潔劑(清新茶樹)2000gx1+1800g補充包x1",null,null,null,null,null,null,"★萃取天然草本抑菌成分 ★溫和中性安全不刺激                            ",null,null,null,null,null,null,270,179,null,0]
[null,null,30,"【香滿室】地板清潔劑(海洋微風)2000gx1+1800g補充包x1",null,null,null,null,null,null,"★萃取天然草本抑菌成分 ★溫和中性安全不刺激                            ",null,null,null,null,null,null,270,179,null,0]
[null,null,31,"【香滿室】地板清潔劑(檀木馨香)2000gx1+1800g補充包x1",null,null,null,null,null,null,"★萃取天然草本抑菌成分 ★溫和中性安全不刺激                            ",null,null,null,null,null,null,270,179,null,0]
[null,null,32,"【香滿室】地板清潔劑(薰衣草)2000gx1+1800g補充包x1",null,null,null,null,null,null,"★萃取天然草本抑菌成分 ★溫和中性安全不刺激                            ",null,null,null,null,null,null,270,179,null,0]
[null,null,33,"【毛寶】米精萃洗碗精1000g x2",null,null,null,null,null,null,"★米糠精萃瓦解油膩髒污 ★中性溫和親膚不傷手                           ",null,null,null,null,null,null,398,188,null,0]
[null,null,34,"【毛寶兔】2倍濃縮速淨洗碗精1000g補充瓶 x2 贈洗碗精470g x1瓶",null,null,null,null,null,null,"★添加植物性護膚因子 ★速淨去油力，中性溫和不刺激                  ★2倍濃縮，用量只要一半，精省必備",null,null,null,null,null,null,710,399,null,0]
[null,null,35,"【毛寶兔】蔬果食器洗滌液1000gx2",null,null,null,null,null,null,"★無添加香精及增稠劑，快溶於水，好沖洗、不殘留                                                                                                                                                                                        ★美國FDA及歐盟ECOCERT認證植物APG洗淨因子",null,null,null,null,null,null,600,399,null,0]
[null,null,36,"【毛寶S】強效去污萬能清潔劑4kg(黃金香柚) x2",null,null,null,null,null,null,"★超強去污、用途廣、清香不刺鼻                                                 ★有效去除油垢、尿垢、污漬等髒污  ",null,null,null,null,null,null,500,360,null,0]
[null,null,37,"【毛寶】熱水瓶開飲機洗淨劑25g*3 x2盒",null,null,null,null,null,null,"★優質嚴選檸檬酸，使用更安心                                                       ★能有效分解水垢，消臭、不殘留，提升飲用水品質",null,null,null,null,null,null,178,118,null,0]
[null,null,38,"【毛寶兔】超啵亮食器杯垢去漬劑 330g x2",null,null,null,null,null,null,"★超酵素活氧潔淨升級配方 ★免刷免搓，除垢除臭一次完成",null,null,null,null,null,null,398,178,null,0]
[null,null,39,"【毛寶】電鍋清潔劑200g x2",null,null,null,null,null,null,"★經SGS檢驗 ★食用級檸檬酸複合配方 ★除水垢焦垢 ",null,null,null,null,null,null,258,158,null,0]
[null,null,40,"【毛寶兔】廚房去油除垢清潔劑500g x1 + 浴廁去污除菌清潔劑500g x1+ 馬桶去垢除臭清潔劑651g x1",null,null,null,null,null,null,"★強效去油成分CQR，5分鐘去除頑垢 ★天然有機檸檬酸，迅速去除水垢及皂垢 ★獨家AHA果酸天然去污除菌",null,null,null,null,null,null,393,239,null,0]
[null,null,41,"【毛寶兔】超泡沫廚房去油除垢清潔劑2000g x2 贈500g噴槍瓶 x1",null,null,null,null,null,null,"★強效去油成分CQR，5分鐘去除頑垢 ★環保性草本配方 ",null,null,null,null,null,null,729,499,null,0]
[null,null,42,"【毛寶兔】超泡沫廚房去油除垢清潔劑500g噴槍瓶 x2",null,null,null,null,null,null,"★強效去油成分CQR，5分鐘去除頑垢 ★環保性草本配方   ",null,null,null,null,null,null,258,160,null,0]
[null,null,43,"【毛寶兔】超檸檬浴廁去污除菌清潔劑2000g x2 贈500g噴槍瓶 x1",null,null,null,null,null,null,"★天然有機檸檬酸，迅速去除水垢及皂垢  ★不殘留、不刺鼻",null,null,null,null,null,null,779,499,null,0]
[null,null,44,"【毛寶兔】超檸檬浴廁去污除菌清潔劑500g噴槍瓶 x2",null,null,null,null,null,null,"★天然有機檸檬酸，迅速去除水垢及皂垢  ★不殘留、不刺鼻",null,null,null,null,null,null,278,160,null,0]
[null,null,45,"【毛寶兔】超果酸AHA馬桶去垢除臭清潔劑651g x2",null,null,null,null,null,null,"★獨家AHA果酸天然去污除菌  ★淡雅柑橘清香，不刺鼻",null,null,null,null,null,null,250,150,null,0]
[null,null,46,"【毛寶】超強效萬用去污劑 - 白柚清香500g-噴槍瓶 x2",null,null,null,null,null,null,"★超強效配方，獨特CQ-100強效去污因子，輕鬆終結頑垢                                       ★淡雅柚子果香，清潔時味道清新不刺鼻",null,null,null,null,null,null,198,138,null,0]
[null,null,47,"【毛寶】超強效萬用去污劑 - 白柚清香2000g x2 贈500g-噴槍瓶 x1",null,null,null,null,null,null,"★超強效配方，獨特CQ-100強效去污因子，輕鬆終結頑垢                                       ★淡雅柚子果香，清潔時味道清新不刺鼻",null,null,null,null,null,null,497,299,null,0]
["個人清潔防蚊系列",null,48,"小鹿山丘有機精油雙效防蚊乳液60g(甜橙精油) x2 贈小鹿山丘舒緩凝露15g x1",null,null,null,null,null,null,"★天然有機精油，有效防蚊 ★無添加DEET(敵避)",null,null,null,null,null,null,760,499,null,0]
[null,null,49,"小鹿山丘有機精油雙效防蚊液80g (甜橙精油)x1 + (迷迭香精油)x1 贈小鹿山丘有機精油雙效防蚊液20g(甜橙精油)x1",null,null,null,null,null,null,"★天然有機精油，有效防蚊 ★無添加DEET(敵避)",null,null,null,null,null,null,930,499,null,0]
[null,null,50,"小鹿山丘有機精油長效雙效防蚊液120g x1 +小鹿山丘有機精油長效雙效防蚊液60g x1 贈小鹿山丘舒緩凝露15g x1",null,null,null,null,null,null,"★天然有機精油，5-6小時有效防蚊 ★無添加DEET(敵避)",null,null,null,null,null,null,1039,799,null,0]
[null,null,51,"小鹿山丘有機精油長效雙效防蚊液60gx2 贈小鹿山丘有機精油雙效防蚊液20g(甜橙精油)x1",null,null,null,null,null,null,"★天然有機精油，5-6小時有效防蚊 ★無添加DEET(敵避)",null,null,null,null,null,null,910,599,null,0]
[null,null,52,"小鹿山丘有機精油驅蚊貼片12枚 x1 + 小鹿山丘有機檸檬草精油防蚊貼片8枚-長效防護 x1",null,null,null,null,null,null,"★精油揮發效果長達12小時 ★無添加DEET(敵避)",null,null,null,null,null,null,479,259,null,0]
[null,null,53,"小鹿山丘台大奈米生醫一號乾洗手80g x3",null,null,null,null,null,null,"★添加台大奈米生醫一號，台灣專利字號 I304338                                                   ★葡萄柚籽萃取-從未成熟的葡萄柚果實種籽精萃而成的潔淨成分",null,null,null,null,null,null,1197,574,null,0]
[null,null,54,"小鹿山丘葡萄柚籽抗菌清潔噴霧425g x1 贈毛寶繽紛花園抗菌洗手乳250gx1",null,null,null,null,null,null,"★天然抗菌因子-葡萄柚籽萃取，有效對抗生活中常見的病菌                                                      ★奈米制菌因子CHG及七種抗菌植物萃取精華，雙效抗菌 ",null,null,null,null,null,null,658,359,null,0]
[null,null,55,"毛寶制臭抗菌織物清新噴霧-瞬效除皺250g x1 + 毛寶制臭抗菌織物清新噴霧-防PM2.5粉塵250g x1 ",null,null,null,null,null,null,"★SPPR天然植物系消臭，防塵除皺一噴瞬效                                                  \n★添加食品級天然葡萄柚籽抑菌成份，抗菌率99.9%",null,null,null,null,null,null,516,258,null,0]
[null,null,56,"毛寶寵物酵素制臭布類清潔液500g x2 贈毛寶寵物植物系制臭抑菌噴霧120g x1",null,null,null,null,null,null,"★微米科技洗淨及蛋白酵素，雙重潔淨                                            ★化妝品及抗菌成份，抑制大腸桿菌、金黃色葡萄球菌",null,null,null,null,null,null,679,319,null,0]
[null,null,57,"毛寶寵物小蘇打植萃食器清潔液500g x2 贈毛寶寵物植物系制臭抑菌噴霧120g x1",null,null,null,null,null,null,"★高效植物性配方洗淨，瓦解油膩                                                    ★添加親膚性潤膚因子，溫和不刺激、雙手不乾澀",null,null,null,null,null,null,799,399,null,0]
[null,null,58,"毛寶寵物草本抑菌地板清潔液500g-蘋果香 x2 贈毛寶寵物植物系制臭抑菌噴霧120g x1",null,null,null,null,null,null,"★歐盟ECOCERT認證，清潔、淨味一拖即淨     \n★噴拖兩用：兩用配方，局部噴擦、大面積桶拖一瓶滿足",null,null,null,null,null,null,799,399,null,0]
[null,null,59,"毛寶寵物植物系制臭抑菌噴霧500g x2 贈毛寶寵物植物系制臭抑菌噴霧120g x1",null,null,null,null,null,null,"★日本植物系瞬效消臭技術，真正消弭臭源，同時淨化空氣                                                   ★天然植物性消臭配方、無香精，溫和不刺激",null,null,null,null,null,null,1139,599,null,0]
[null,null,60,"【毛寶兔】超天然小蘇打植物2倍濃縮洗衣精1000g x1+ 超酵素制臭抗菌防霉洗衣精1000gx1 +超酵素衣物去漬劑500g-噴槍瓶 x1",null,null,null,null,null,null,"★嬰幼兒衣物適用  ★食用級小蘇打添加                                                  ★日本研發去味因子 ★蛋白分解酵素 ★有效防霉及去除汗臭  ",null,null,null,null,null,null,469,359,null,0]
[null,null,{"$f":"SUM(U21:U80)","v":0},"訂單金額未滿2000元，另付運費100元；滿2000元免運",null,null,null,null,null,null,null,null,null,null,null,null,null,null,null,{"$f":"IF(C81<2000,1,0)","v":1},{"$f":"T81*100","v":100}]
["滿3000元送「毛寶制臭抗菌織物清新噴霧250g」",null,null,null,null,null,null,null,null,null,null,null,null,null,null,null,null,null,null,{"$f":"IF(S83>=3000,1,0)","v":0},{"$f":"S82*T82","v":0}]
["訂單總金額(NT$元)",null,null,null,null,null,null,null,null,null,null,null,null,null,null,null,null,null,{"$f":"SUM(U21:U80)+U81","v":100}]
["注意事項"]
["1. 訂購單請詳細填寫email及聯絡電話，訂單成立以email通知，出貨前1～2天以mail通知預計到貨日期，如不便收件，可直接與司機改期配送。無法聯繫3次，即取消訂單。\n2. 響應財政部電子發票政策，一律開立電子發票，發票開立資訊會派送到mail信箱。二聯式改開三聯式、三聯式改開二聯式，請辦理退貨取消訂單重新下單。\n3. 送貨時間週一至週五9:00~17:00，訂單成立5~7個工作天出貨，離島外島恕不配送。ATM轉帳、信用卡付款、Line Pay付款、街口支付僅適用「網路訂購」，一次付清。電話及傳真訂購僅限用「貨到付款」，貨到付款者請備妥正確貨款交由送貨人員，恕不找零；部分地區不適用貨到付款，偏遠地區建議使用ATM、信用卡付款，以免影響到貨時間。\n4. 週六配送無法指定日期，以實際出貨順序安排配送；實際配送時段，以貨運公司配送實際為準。若遇貨品配達時不方便收貨，請直接與司機另約配送時間，且另約之配送時間不可超過7天；週日不送貨。\n5. 單筆訂單未滿2000元，另外收取100元運費；單筆訂單金額滿2000元免運費。訂購滿2500元送毛寶兔超啵亮食器杯垢去漬劑330g($199)、滿3000元贈品任選送毛寶S低敏抗菌手洗精1000g($139)/毛寶制臭抗菌織物清新噴霧-瞬效除皺250g($258)/毛寶制臭抗菌織物清新噴霧-防PM2.5粉塵250g($258)、滿3500元送小鹿山丘有機精油防蚊超值組 ($827)，贈品恕不累送。贈品數量有限，送完為止。毛寶公司保留更換其他贈品權利。\n6. 「網路下單」會員獨享購物金，滿$3,500送$300購物金，滿$6,000送$600購物金，需加入毛寶兔宅配網站會員，完成網路下單，且期間內無取消訂單於出貨後7天統一發放。\n7. 每筆訂貨單之訂貨資料將以本公司實際收到之訂貨單內容為依據，如有任何因電腦、網路、電話、技術或不可歸責於毛寶公司之事由，而使購買者所寄出或填寫之資料有遲延、遺失、錯誤、無法辨識或毀損情況，毛寶公司不負任何法律責任，購買者亦不得因此異議或要求賠償。毛寶公司保留接單與否及更換贈品之權利，以及更改/解釋活動內容之權利。\n8. 本人同意所填資料供毛寶股份有限公司作為促銷及行銷活動使用；若不同意請來信或來電表示。\n9. 活動價格、資訊以網站公告為主。如有任何疑問，請聯絡客服電話0800-266-199  客服傳真02-8976-2715  服務時間：週一至週五  09:00～12:30、13:30 ~ 17:00。"]